bitfinex/quotes_ETHUSD_20241030
["timestamp","ask_amount","ask_price","bid_price","bid_amount"]
[1730294634926,3.71346,2692.9,2692.4,0.5509]
[1730294635218,4.50377,2693.0,2692.5,3.714]
[1730294635434,3.71328,2693.1,2692.6,3.71387]
[1730294635722,0.8173,2693.3,2692.6,3.71383]
[1730294635723,4.5303,2693.3,2692.6,3.71383]
[1730294635881,3.71321,2693.1,2692.6,3.71383]
[1730294636078,5.04147313,2693.3,2692.8,3.71357]
[1730294636279,3.71311,2693.2,2692.8,3.71359]
[1730294636526,3.71287,2693.4,2692.8,3.71359]
[1730294636814,0.7724,2693.1,2692.1,0.5509]
[1730294637024,3.71363,2692.8,2692.3,3.71421]
[1730294637210,3.71376,2692.7,2692.1,1.223369]
[1730294637410,3.7139,2692.6,2692.1,1.223369]
[1730294637612,3.71376,2692.7,2692.2,3.71434]
[1730294637924,3.71376,2692.7,2692.2,7.42869]
[1730294638129,3.71347,2692.9,2692.3,3.71429]
[1730294638304,3.71347,2692.9,2692.2,3.71434]
[1730294638626,3.71384,2692.7,2692.2,3.71434]
[1730294638787,7.42769,2692.7,2692.2,3.71434]
[1730294638990,3.71384,2692.7,2692.2,3.71434]
[1730294639330,3.71409,2692.5,2692.1,0.5509]
[1730294639685,3.71386,2692.7,2692.1,0.5509]
[1730294639930,3.71388,2692.6,2692.1,4.26537]
[1730294640290,3.71386,2692.7,2692.2,3.71435]
[1730294640602,3.71402,2692.5,2692.1,0.5509]
[1730294640806,3.71386,2692.7,2692.1,4.26546]
[1730294640989,3.71389,2692.6,2692.1,4.26546]
[1730294641185,0.448587,2692.9,2692.1,0.5509]
[1730294641186,3.71412,2692.5,2692.1,0.5509]
[1730294641532,3.71409,2692.5,2692.1,0.5509]
[1730294641694,3.71388,2692.6,2692.1,4.26546]
[1730294641894,3.71405,2692.5,2692.1,0.5509]
[1730294642097,3.71417,2692.4,2692.1,0.5509]
[1730294642324,3.71437,2692.3,2691.7,0.5509]
[1730294642661,3.71463,2692.1,2691.7,0.5509]
[1730294643309,3.71444,2692.2,2691.7,4.26594]
[1730294643512,3.71437,2692.3,2691.7,4.26594]
[1730294643830,3.71458,2692.1,2691.7,4.26594]
[1730294643992,3.71458,2692.1,2691.7,0.5509]
[1730294644605,3.71499,2691.8,2691.4,3.71544]
[1730294644924,3.71499,2691.8,2691.4,0.5509]
[1730294645091,7.43009,2691.8,2691.5,0.03782287]
[1730294645292,3.71522,2691.7,2691.5,0.03782287]
[1730294645516,4.53121,2692.0,2691.5,0.03782287]
[1730294645827,0.8164,2692.0,2691.5,0.03782287]
[1730294646133,3.71467,2692.1,2691.6,3.71526]
[1730294646478,3.71465,2692.1,2691.6,3.75309925]
[1730294646618,3.71472,2692.0,2691.6,3.75309925]
[1730294646820,3.71465,2692.1,2691.6,3.75309925]
[1730294647019,3.71478,2692.0,2691.6,0.03783925]
[1730294647639,3.71485,2691.9,2691.6,0.03783925]
[1730294648152,3.71485,2691.9,2691.7,0.03781406]
[1730294648458,3.71465,2692.1,2691.5,3.71536]
[1730294648628,3.71463,2692.1,2691.6,3.71525]
[1730294648831,3.71483,2692.0,2691.7,0.03781406]
[1730294649373,3.71485,2691.9,2691.8,0.03778887]
[1730294649733,3.71485,2691.9,2691.4,4.26633]
[1730294649931,3.71485,2691.9,2691.8,0.03778887]
[1730294650136,3.71553,2691.5,2691.0,0.5509]
[1730294650356,3.71532,2691.6,2691.1,3.71588]
[1730294650522,3.71532,2691.6,2691.1,4.514172]
[1730294650830,3.71507,2691.8,2691.1,4.514172]
[1730294650831,3.71513,2691.7,2691.2,3.7900356]
[1730294651034,3.71507,2691.8,2691.4,3.71552]
[1730294651230,3.71461,2692.1,2691.5,0.5509]
[1730294651430,3.71444,2692.2,2691.7,3.71511]
[1730294651638,3.71429,2692.4,2691.8,3.71489]
[1730294651924,3.71471,2692.0,2691.6,3.71513]
[1730294652344,3.71471,2692.0,2691.5,4.26626]
[1730294652722,3.71487,2691.9,2691.3,0.5509]
[1730294652961,3.71546,2691.5,2691.0,7.82205847]
[1730294653164,3.71553,2691.4,2691.0,0.5509]
[1730294653329,3.71562,2691.4,2691.0,0.5509]
[1730294653525,3.71514,2691.7,2691.0,4.26692]
[1730294653731,3.71526,2691.6,2691.1,3.71584]
[1730294653962,4.47209643,2695.4,2690.7,0.05575383]
[1730294654169,0.7522,2692.7,2692.2,3.55513847]
[1730294654373,0.7522,2692.7,2692.2,3.71443]
[1730294654538,3.71342,2693.0,2692.1,7.34394013]
[1730294654539,3.71346,2692.9,2692.1,7.34394013]
[1730294654735,3.71346,2692.9,2692.2,3.71443]
[1730294654932,4.4998,2693.0,2692.1,7.34398013]
[1730294654933,3.71361,2692.8,2692.1,7.26969847]
[1730294655139,4.4998,2693.0,2692.4,3.55513847]
[1730294655475,4.4998,2693.0,2692.4,3.629414]
[1730294655833,4.4998,2693.0,2692.4,7.343544]
[1730294656035,0.7864,2693.0,2692.5,3.714]
[1730294656232,4.49982,2693.0,2692.4,3.629414]
[1730294656437,4.54506,2693.3,2692.6,4.26468]
[1730294656747,0.8321,2693.3,2692.7,3.71373]
[1730294657071,0.8321,2693.3,2692.7,7.84742575]
[1730294657280,3.71281,2693.4,2692.8,3.71352]
[1730294657783,3.71291,2693.3,2692.8,3.7136]
[1730294659474,3.71314,2693.2,2692.7,7.84748575]
[1730294659639,0.7642,2693.1,2692.5,3.71401]
[1730294659845,3.7134,2693.0,2692.5,3.71393]
[1730294660060,0.7642,2693.1,2692.6,3.71388]
[1730294660265,0.7642,2693.1,2692.6,3.74891467]
[1730294660540,0.7642,2693.1,2692.6,0.03503467]
[1730294660741,3.71356,2692.9,2692.6,0.03503467]
[1730294660968,3.71333,2693.0,2692.5,3.71395]
[1730294661169,3.71333,2693.0,2692.7,0.0350095]
[1730294661346,3.71333,2693.0,2692.6,3.74889467]
[1730294661543,3.71333,2693.0,2692.8,0.03498432]
[1730294661855,3.71333,2693.0,2692.9,0.03469169]
[1730294662179,3.71333,2693.0,2692.5,3.71395]
[1730294662474,3.71333,2693.0,2692.9,0.03469169]
[1730294662672,3.71333,2693.0,2692.6,3.71386]
[1730294662972,3.71333,2693.0,2692.6,0.03472161]
[1730294663177,3.71354,2692.9,2692.4,3.71414]
[1730294663470,3.7136,2692.8,2692.7,0.03470265]
[1730294663680,3.7136,2692.8,2692.3,4.26518]
[1730294663860,3.7136,2692.8,2692.7,0.03470265]
[1730294664063,4.5010844,2692.8,2692.3,0.5509]
[1730294664253,3.71378,2692.7,2692.3,0.5509]
[1730294664453,3.71378,2692.7,2692.4,0.03481963]
[1730294664658,3.7136,2692.8,2692.4,0.03481963]
[1730294665241,3.71378,2692.7,2692.4,0.03481963]
[1730294665388,3.71349,2692.9,2692.4,0.03481963]
[1730294665690,3.7136,2692.8,2692.4,3.71414]
[1730294665850,3.7136,2692.8,2692.5,0.03481518]
[1730294666048,3.7136,2692.8,2692.3,3.71417]
[1730294666248,3.71334,2693.0,2692.4,0.03484036]
[1730294666249,3.71377,2692.7,2692.4,0.03484036]
[1730294666562,0.7642,2693.1,2692.4,0.03484036]
[1730294666563,3.71357,2692.9,2692.4,0.03484036]
[1730294666765,3.71367,2692.8,2692.3,3.71423]
[1730294666965,3.71367,2692.8,2692.5,0.03481518]
[1730294667187,3.71347,2692.9,2692.4,3.78835571]
[1730294667351,3.71347,2692.9,2692.6,0.03479]
[1730294667550,3.71361,2692.8,2692.4,3.71408]
[1730294667753,4.577417,2692.9,2692.7,0.03476483]
[1730294668084,7.42715,2692.9,2692.8,0.03473966]
[1730294668390,3.71361,2692.8,2692.4,3.71408]
[1730294668597,3.71361,2692.8,2692.3,3.98752042]
[1730294668747,3.71388,2692.6,2692.5,0.03481311]
[1730294668954,3.7141,2692.5,2692.0,3.71469]
[1730294669159,3.7141,2692.5,2692.0,3.78897675]
[1730294670557,0.7615,2692.6,2692.0,3.78893675]
[1730294670802,3.71381,2692.7,2692.2,7.97964]
[1730294671407,3.71381,2692.7,2692.3,3.71428]
[1730294671560,3.71381,2692.7,2692.3,3.71228]
[1730294671961,0.7702,2692.6,2692.0,4.13375575]
[1730294672197,0.7702,2692.6,2691.9,0.27331001]
[1730294672198,3.71436,2692.3,2691.9,0.27331001]
[1730294672495,3.7145,2692.2,2691.8,0.27331001]
[1730294672746,3.7145,2692.2,2691.8,3.98827001]
[1730294673002,4.457307,2692.2,2691.8,0.27331001]
[1730294673168,4.457307,2692.2,2691.7,4.68465575]
[1730294673169,4.457307,2692.2,2691.7,8.39975575]
[1730294673800,3.71444,2692.2,2691.7,8.39975575]
[1730294674463,3.71444,2692.2,2691.8,3.71498]
[1730294674659,3.71429,2692.3,2691.8,7.42986]
[1730294674907,3.71429,2692.3,2691.8,7.42978]
[1730294675067,3.71429,2692.3,2691.9,0.03518187]
[1730294675698,3.71251,2692.2,2691.9,0.03518187]
[1730294675885,3.71464,2692.1,2691.9,0.03518187]
[1730294676087,3.71251,2692.2,2691.7,8.39967575]
[1730294676513,3.71251,2692.2,2691.8,3.71497]
[1730294677680,3.71251,2692.2,2691.7,4.53931071]
[1730294677983,3.71459,2692.1,2691.7,4.53935071]
[1730294678189,7.4287,2692.3,2691.8,3.71492]
[1730294678618,3.71429,2692.3,2691.8,7.26950613]
[1730294679381,3.71429,2692.3,2691.8,7.26949613]
[1730294679698,3.71429,2692.3,2691.9,3.71478]
[1730294680895,3.71429,2692.3,2691.8,3.55458613]
[1730294681094,3.71449,2692.2,2691.8,3.55458613]
[1730294681523,3.71449,2692.2,2691.8,7.26956613]
[1730294682615,3.71436,2692.3,2691.8,7.26956613]
[1730294682998,3.71446,2692.2,2691.8,7.26956613]
[1730294685292,3.71467,2692.1,2691.7,0.5509]
[1730294685494,3.71467,2692.1,2691.7,4.26595]
[1730294685697,3.71467,2692.1,2691.7,5.69290267]
[1730294685901,3.71453,2692.2,2691.7,5.41956961]
[1730294686123,3.7143,2692.3,2691.9,3.55458613]
[1730294686435,0.7702,2692.6,2691.9,3.55458613]
[1730294686588,4.48409,2692.6,2691.9,3.55458613]
[1730294686791,4.48409,2692.6,2692.0,7.42942]
[1730294687114,4.48409,2692.6,2692.1,3.98783839]
[1730294687323,4.48409,2692.6,2692.1,3.71445]
[1730294687817,3.71414,2692.5,2692.0,3.98797216]
[1730294688006,0.7702,2692.6,2692.0,0.27329216]
[1730294688208,3.71402,2692.5,2692.0,0.27329216]
[1730294688415,3.71422,2692.4,2692.0,0.27329216]
[1730294688926,3.71402,2692.5,2692.1,3.71456]
[1730294690336,0.7702,2692.6,2692.0,1.02755799]
[1730294690337,3.71429,2692.3,2692.0,0.27329216]
[1730294690490,3.71449,2692.2,2691.5,3.82800426]
[1730294690828,3.7148,2692.0,2691.5,7.26991613]
[1730294691035,3.71485,2691.9,2691.6,0.31466254]
[1730294691392,3.71472,2692.0,2691.6,3.75642491]
[1730294691622,3.71472,2692.0,2691.6,0.04122491]
[1730294691832,3.71507,2691.8,2691.6,0.04122491]
[1730294692126,3.71512,2691.7,2691.6,0.03922491]
[1730294693117,3.71482,2692.0,2691.6,0.03922491]
[1730294693339,3.7148,2692.0,2691.6,0.03922491]
[1730294693641,3.7148,2692.0,2691.6,3.75446491]
[1730294693804,3.71458,2692.1,2691.8,3.55458613]
[1730294695925,3.71438,2692.3,2691.8,3.55458613]
[1730294696101,3.71449,2692.2,2691.8,3.55458613]
[1730294696429,3.71438,2692.3,2691.8,3.55458613]
[1730294696658,3.71443,2692.2,2691.8,3.55458613]
[1730294697829,3.71425,2692.4,2691.9,0.07429309]
[1730294698143,3.71425,2692.4,2691.9,3.71478]
[1730294698311,3.71425,2692.4,2691.8,7.26944613]
[1730294698523,3.71425,2692.4,2692.0,3.71468]
[1730294698716,4.54061,2692.6,2692.1,3.71456]
[1730294699024,4.54064,2692.6,2692.1,3.71456]
[1730294699231,3.71404,2692.5,2692.0,3.71466]
[1730294699429,3.71404,2692.5,2692.0,4.44158461]
[1730294699609,3.71404,2692.5,2692.0,4.71502552]
[1730294700259,3.71457,2692.1,2692.0,0.27344091]
[1730294700423,0.8267,2692.6,2691.8,0.27344091]
[1730294700424,3.71451,2692.2,2691.8,0.27344091]
[1730294700618,0.8267,2692.6,2691.7,0.82434091]
[1730294700619,3.71464,2692.1,2691.7,0.82434091]
[1730294700820,4.086104,2692.1,2691.7,0.82434091]
[1730294701039,4.54061,2692.6,2691.7,4.53946091]
[1730294701040,3.71444,2692.2,2691.7,4.53946091]
[1730294701534,0.8267,2692.6,2692.1,3.71449]
[1730294702253,6.71355,2692.9,2692.2,4.26532]
[1730294702254,3.71364,2692.8,2692.2,4.26532]
[1730294702445,3.71364,2692.8,2692.2,5.44609538]
[1730294702789,3.71364,2692.8,2692.2,4.26531]
[1730294702945,3.71364,2692.8,2692.2,4.53871882]
[1730294703321,4.52575,2692.9,2692.3,3.71422]
[1730294703625,4.52575,2692.9,2692.3,3.71421]
[1730294703824,3.71327,2693.1,2692.4,7.26873613]
[1730294704041,4.52704,2693.4,2692.8,3.71351]
[1730294704255,0.8142,2693.4,2692.9,3.71334]
[1730294704611,4.52699,2693.4,2692.9,3.71334]
[1730294705853,0.8187,2693.7,2693.2,3.55458613]
[1730294706010,3.71219,2693.9,2693.2,3.55458613]
[1730294706011,4.53089,2693.9,2693.4,7.26731613]
[1730294706213,4.53089,2693.9,2693.4,3.55458613]
[1730294706430,4.5019,2694.1,2693.6,3.55458613]
[1730294706871,0.79,2694.1,2693.7,0.07424185]
[1730294707054,3.71168,2694.2,2693.8,3.55458613]
[1730294707247,0.371157,2694.2,2693.9,3.71208]
[1730294707425,0.76,2694.3,2693.9,3.71208]
[1730294707862,4.47155,2694.3,2693.8,3.6288225]
[1730294708028,0.76,2694.3,2693.9,3.71206]
[1730294708227,0.76,2694.3,2693.8,7.26680613]
[1730294708556,4.51945,2694.5,2693.9,3.71206]
[1730294708859,4.51945,2694.5,2694.1,3.55458613]
[1730294709029,3.71105,2694.7,2694.1,3.55458613]
[1730294709236,0.7533,2694.8,2694.3,3.55458613]
[1730294709452,0.7533,2694.8,2694.5,3.55458613]
[1730294709453,3.71096,2694.8,2694.5,3.55458613]
[1730294709621,0.742179,2694.7,2694.5,3.55458613]
[1730294709957,0.742179,2694.7,2694.2,0.5509]
[1730294709958,0.742179,2694.7,2694.3,3.55458613]
[1730294710359,0.742179,2694.7,2694.5,3.55458613]
[1730294710667,4.453239,2694.7,2694.5,3.55458613]
[1730294710853,3.71106,2694.7,2694.3,3.55458613]
[1730294711358,3.71123,2694.6,2694.3,3.55458613]
[1730294711566,3.71106,2694.7,2694.3,3.55458613]
[1730294711737,3.71129,2694.5,2694.3,3.55458613]
[1730294712058,3.7119,2694.1,2693.8,3.55458613]
[1730294712464,7.4238,2694.1,2693.8,3.55458613]
[1730294712623,3.71209,2693.9,2693.5,0.5509]
[1730294712822,3.71195,2694.0,2693.5,4.10548613]
[1730294713277,4.162215,2694.0,2693.5,4.10548613]
[1730294713419,4.162215,2694.0,2693.5,3.55458613]
[1730294713420,3.71244,2693.7,2693.5,3.55458613]
[1730294713626,4.162325,2694.0,2693.5,3.55458613]
[1730294713924,0.7907,2694.1,2693.2,3.55458613]
[1730294713925,3.71257,2693.6,2693.2,3.55458613]
[1730294714343,3.71285,2693.4,2693.2,3.55458613]
[1730294715250,7.42571,2693.4,2693.2,3.55458613]
[1730294715453,3.71291,2693.3,2693.2,3.55458613]
[1730294715957,3.71285,2693.4,2693.2,3.55458613]
[1730294716476,3.71285,2693.4,2692.7,0.5509]
[1730294716477,3.71285,2693.4,2693.0,4.1321008]
[1730294716837,3.71298,2693.3,2693.0,4.1321008]
[1730294717034,3.71285,2693.4,2693.0,4.1321008]
[1730294717985,3.71265,2693.5,2693.0,7.8453608]
[1730294718474,3.71329,2693.1,2692.7,4.6830008]
[1730294719363,3.71306,2693.2,2692.7,4.75726872]
[1730294719572,4.50801,2693.4,2692.9,3.71344]
[1730294719742,3.71281,2693.4,2693.0,4.1321008]
[1730294720141,3.71259,2693.6,2693.0,4.92408796]
[1730294720379,0.7531,2693.7,2693.1,3.7131]
[1730294720583,0.7891,2694.0,2693.3,4.6830008]
[1730294720754,3.71168,2694.2,2693.7,3.71229]
[1730294721241,3.71204,2694.0,2693.6,4.1321008]
[1730294721611,4.53639,2693.9,2693.4,4.18101008]
[1730294721807,3.71209,2693.9,2693.4,3.71271]
[1730294721969,3.71234,2693.8,2693.3,4.1321008]
[1730294722365,3.71234,2693.8,2693.3,7.8450108]
[1730294722801,0.8243,2694.2,2693.3,7.8449408]
[1730294722967,0.8243,2694.2,2693.6,4.1321008]
[1730294723164,3.71182,2694.1,2693.6,7.8445008]
[1730294723663,3.71163,2694.3,2693.7,3.78650879]
[1730294723882,0.7988,2694.5,2693.7,3.71234]
[1730294724082,3.71182,2694.1,2693.7,3.71234]
[1730294724402,3.7114,2694.4,2693.7,3.71226]
[1730294724605,3.71174,2694.2,2693.7,3.71226]
[1730294724809,1.17868,2694.5,2693.4,0.78449408]
[1730294724810,0.7988,2693.9,2693.4,0.78449408]
[1730294724979,3.7123,2693.8,2693.3,3.71282]
[1730294725349,0.7988,2693.9,2693.4,3.71273]
[1730294726068,0.7988,2693.9,2693.2,4.26389]
[1730294726272,4.51095,2693.9,2693.3,3.7128]
[1730294726498,4.51095,2693.9,2693.3,1.21087908]
[1730294726697,3.71208,2694.0,2693.5,3.7126]
[1730294726899,3.71236,2693.8,2693.3,1.21087908]
[1730294727211,3.71233,2693.8,2693.3,4.92377908]
[1730294727369,3.71239,2693.7,2693.3,4.92377908]
[1730294727570,3.71233,2693.8,2693.3,4.92377908]
[1730294728019,7.42469,2693.8,2693.3,4.92377908]
[1730294728305,4.47819,2694.2,2693.2,0.5509]
[1730294728306,3.71195,2694.0,2693.2,0.5509]
[1730294728614,3.71195,2694.0,2692.8,4.1321008]
[1730294728615,0.7665,2693.5,2692.7,0.5509]
[1730294728773,0.7665,2693.5,2692.4,4.53082224]
[1730294728774,0.7665,2693.2,2692.0,3.71461]
[1730294728974,0.7665,2693.2,2691.7,0.9225]
[1730294728975,3.71423,2692.4,2691.7,0.5509]
[1730294729191,3.71423,2692.4,2691.8,4.22426257]
[1730294729383,3.71443,2692.2,2691.8,0.50938257]
[1730294729612,3.71464,2692.1,2691.6,0.03922491]
[1730294729928,4.50558,2692.4,2691.6,0.03922491]
[1730294730135,3.71493,2691.9,2691.6,0.03922491]
[1730294730317,3.71461,2692.1,2691.6,0.03922491]
[1730294730480,0.37913,2692.2,2691.6,0.03922491]
[1730294730679,3.71498,2691.8,2691.6,0.03922491]
[1730294730989,3.71512,2691.7,2691.6,0.03922491]
[1730294731216,3.71501,2691.8,2691.6,0.03922491]
[1730294731598,3.71512,2691.7,2691.6,0.03922491]
[1730294732785,4.538503,2691.7,2691.6,0.03922491]
[1730294733227,3.71512,2691.7,2691.6,0.03922491]
[1730294734542,4.51871,2691.8,2691.6,0.03922491]
[1730294734819,3.71501,2691.8,2691.6,0.03922491]
[1730294735384,7.43007,2691.8,2691.6,0.03922491]
[1730294735599,3.71501,2691.8,2691.6,0.03922491]
[1730294735805,3.71512,2691.7,2691.6,0.03922491]
[1730294737827,7.43005,2691.8,2691.6,0.03922491]
[1730294738492,3.71498,2691.8,2691.6,0.03922491]
[1730294738692,3.71512,2691.7,2691.6,0.03922491]
[1730294739020,3.7148,2692.0,2691.6,0.03922491]
[1730294739221,1.36506039,2692.1,2691.6,0.03922491]
[1730294739222,3.71506,2691.8,2691.6,0.03922491]
[1730294739793,4.54702,2691.7,2691.6,0.03922491]
[1730294740931,3.71512,2691.7,2691.6,0.03922491]
[1730294746223,3.71512,2691.7,2691.6,0.03722491]
[1730294746528,4.458138,2691.7,2691.6,0.03722491]
[1730294748244,8.244438,2691.7,2691.6,0.03722491]
[1730294750047,8.264438,2691.7,2691.6,0.03722491]
[1730294750355,3.71626,2690.9,2690.5,0.5509]
[1730294752227,3.7161,2691.0,2690.5,0.5509]
[1730294753154,3.71623,2690.9,2690.5,0.5509]
[1730294753557,3.71639,2690.8,2690.5,0.5509]
[1730294753926,3.71639,2690.8,2690.7,3.55620843]
[1730294754636,3.71609,2691.0,2690.7,3.55620843]
[1730294755453,4.52813,2691.5,2690.8,3.71628]
[1730294755762,3.71559,2691.4,2691.1,3.55620843]
[1730294756321,4.52813,2691.5,2691.1,3.55620843]
[1730294756657,3.71564,2691.4,2691.1,3.55620843]
[1730294757960,1.500518,2691.7,2691.1,3.55620843]
[1730294757961,5.215738,2691.7,2691.1,3.55620843]
[1730294758169,0.7575,2692.0,2691.4,3.55620843]
[1730294758325,0.58164018,2692.4,2691.7,3.55620843]
[1730294758326,3.71449,2692.2,2691.7,3.55620843]
[1730294758668,3.71457,2692.1,2691.7,3.55620843]
[1730294758851,3.71474,2692.0,2691.7,3.55620843]
[1730294759052,3.71459,2692.1,2691.7,3.55620843]
[1730294759256,3.71472,2692.0,2691.7,3.55620843]
[1730294760356,3.71449,2692.2,2691.7,7.27131843]
[1730294760758,3.71415,2692.4,2692.0,3.55620843]
[1730294760933,3.7141,2692.5,2692.0,7.27083843]
[1730294761139,3.7141,2692.5,2692.0,3.55620843]
[1730294761343,3.7141,2692.5,2692.1,0.5509]
[1730294761656,4.52425,2692.7,2692.1,0.5509]
[1730294761864,3.71389,2692.6,2692.1,4.26546]
[1730294762374,4.52415,2692.7,2692.1,5.41902084]
[1730294762530,3.71363,2692.8,2692.3,3.55620843]
[1730294762736,0.8151,2693.0,2692.4,3.71408]
[1730294762970,3.7132,2693.1,2692.6,4.10710843]
[1730294763336,3.71305,2693.2,2692.6,4.10710843]
[1730294763699,0.8151,2693.3,2692.6,4.10710843]
[1730294763700,3.71343,2693.0,2692.6,4.10710843]
[1730294764381,3.71314,2693.2,2692.6,7.82091843]
[1730294764535,3.71287,2693.4,2692.9,3.55620843]
[1730294764736,3.71271,2693.5,2692.9,7.26957843]
[1730294764972,3.71258,2693.6,2693.0,3.7133]
[1730294765176,3.71258,2693.6,2693.2,4.10710843]
[1730294765667,3.71265,2693.5,2693.2,4.10710843]
[1730294765873,4.53478,2693.6,2693.2,4.10710843]
[1730294766074,3.71258,2693.6,2693.2,4.10710843]
[1730294766693,6.71203,2694.0,2693.3,3.71289]
[1730294766834,3.71218,2693.9,2693.3,3.71289]
[1730294767674,4.465813,2694.0,2693.3,3.71289]
[1730294767874,3.71203,2694.0,2693.3,3.71289]
[1730294768050,3.71203,2694.0,2693.4,3.71266]
[1730294768247,3.71203,2694.0,2693.3,3.71291]
[1730294768479,3.71203,2694.0,2693.4,3.71271]
[1730294768667,3.71209,2693.9,2693.4,3.71271]
[1730294768862,3.71209,2693.9,2693.3,3.71291]
[1730294769039,3.71209,2693.9,2693.6,3.55620843]
[1730294769448,3.71203,2694.0,2693.6,3.55620843]
[1730294770444,3.71218,2693.9,2693.6,3.55620843]
[1730294771339,3.71226,2693.8,2693.6,3.55620843]
[1730294771544,3.71271,2693.5,2693.1,3.55620843]
[1730294771742,3.7125,2693.6,2693.1,3.55620843]
[1730294771948,4.49513,2693.7,2693.4,3.55620843]
[1730294772261,3.71368,2692.8,2692.2,4.26526]
[1730294772468,0.7827,2693.1,2692.6,3.55620843]
[1730294772671,3.71368,2692.8,2692.6,3.91182927]
[1730294772851,3.71368,2692.8,2692.6,3.55620843]
[1730294773180,3.71341,2693.0,2692.3,3.71428]
[1730294773181,0.7602,2692.7,2692.3,3.55620843]
[1730294773384,3.7139,2692.6,2692.3,3.55620843]
[1730294773689,3.71357,2692.9,2692.3,7.27047843]
[1730294773847,3.71368,2692.8,2692.6,3.55620843]
[1730294775276,3.71374,2692.7,2692.6,3.55620843]
[1730294775483,3.71348,2692.9,2692.6,3.55620843]
[1730294775791,3.71336,2693.0,2692.6,3.55620843]
[1730294776093,4.52683,2693.2,2692.7,0.5509]
[1730294776309,3.71319,2693.1,2692.7,0.5509]
[1730294776451,3.71353,2692.9,2692.5,3.55620843]
[1730294776791,3.71353,2692.9,2692.5,2.59276243]
[1730294776992,3.713,2693.3,2692.8,3.55620843]
[1730294777157,3.71313,2693.2,2692.8,3.55620843]
[1730294777358,4.08443,2693.2,2692.8,3.55620843]
[1730294777589,3.71313,2693.2,2692.8,3.55620843]
[1730294777770,3.7132,2693.1,2692.8,3.55620843]
[1730294778491,3.71306,2693.2,2692.8,3.55620843]
[1730294778695,3.7132,2693.1,2692.8,3.55620843]
[1730294779890,0.7709,2693.5,2692.8,3.55620843]
[1730294780068,3.71346,2692.9,2692.4,4.26495]
[1730294780273,3.71346,2692.9,2692.6,3.55620843]
[1730294780470,3.71333,2693.0,2692.6,3.55620843]
[1730294780964,3.71355,2692.9,2692.6,3.55620843]
[1730294781372,3.71362,2692.8,2692.6,3.55620843]
[1730294781574,0.8145,2693.3,2692.6,3.55620843]
[1730294781775,3.71343,2693.0,2692.5,3.71395]
[1730294782079,3.71368,2692.8,2692.6,3.55620843]
[1730294782776,3.71347,2692.9,2692.6,3.55620843]
[1730294782986,3.71361,2692.8,2692.6,3.55620843]
[1730294783388,3.71374,2692.7,2692.6,3.55620843]
[1730294783599,3.71374,2692.7,2692.1,0.5509]
[1730294783600,1.515035,2692.7,2692.1,0.5509]
[1730294783910,3.71431,2692.3,2692.0,3.55620843]
[1730294784398,3.71412,2692.5,2692.0,3.55620843]
[1730294784762,3.71417,2692.4,2692.0,3.55620843]
[1730294784967,3.71431,2692.3,2692.0,3.55620843]
[1730294785276,3.71412,2692.5,2692.0,3.55620843]
[1730294785590,3.71416,2692.4,2692.0,3.55620843]
[1730294785772,0.7573,2692.3,2691.7,3.55620843]
[1730294785979,3.71491,2691.9,2691.7,3.55620843]
[1730294786377,4.47161,2692.3,2691.7,3.55620843]
[1730294786378,3.71463,2692.1,2691.7,3.55620843]
[1730294786578,3.0,2692.2,2692.0,3.55620843]
[1730294786799,3.71444,2692.2,2692.0,3.55620843]
[1730294786985,3.71411,2692.5,2692.0,3.55620843]
[1730294787190,3.71429,2692.3,2692.0,3.55620843]
[1730294787490,0.7635,2692.6,2692.0,3.55620843]
[1730294787674,3.71403,2692.5,2692.3,3.55620843]
[1730294788592,0.747712,2692.6,2692.3,3.55620843]
[1730294788806,3.71389,2692.6,2692.3,3.55620843]
[1730294788970,7.4277,2692.7,2692.3,3.55620843]
[1730294789175,0.7635,2692.9,2692.6,3.55620843]
[1730294789384,3.71318,2693.2,2692.6,3.55620843]
[1730294789606,3.71326,2693.1,2692.6,7.27007843]
[1730294789906,3.71326,2693.1,2692.6,7.27006843]
[1730294790319,3.71326,2693.1,2692.6,3.55620843]
[1730294790596,3.71375,2692.7,2692.4,3.55620843]
[1730294790801,3.71394,2692.6,2692.4,3.55620843]
[1730294791163,3.71364,2692.8,2692.1,3.55620843]
[1730294791516,3.71443,2692.2,2692.1,3.55620843]
[1730294792190,3.71441,2692.3,2692.1,3.55620843]
[1730294792367,4.47908,2692.4,2692.1,3.55620843]
[1730294792565,3.71443,2692.2,2692.1,3.55620843]
[1730294793698,3.71478,2692.0,2691.8,3.55620843]
[1730294794103,3.71484,2691.9,2691.8,3.55620843]
[1730294794707,4.47064,2691.9,2691.8,3.55620843]
[1730294795003,0.01,2692.6,2691.8,3.55620843]
[1730294795004,6.71449,2692.2,2691.8,3.55620843]
[1730294795169,1.042878,2692.1,2691.8,3.55620843]
[1730294795367,3.7146,2692.1,2691.8,3.55620843]
[1730294796110,3.0,2692.2,2691.8,3.55620843]
[1730294796407,3.7148,2692.0,2691.8,3.55620843]
[1730294797194,3.71509,2691.8,2691.5,3.55620843]
[1730294797809,3.71485,2691.9,2691.5,3.55620843]
[1730294798184,3.71381,2692.7,2692.1,3.71444]
[1730294798373,3.71381,2692.7,2692.4,3.55620843]
[1730294798573,4.52047,2692.9,2692.5,3.71394]
[1730294798574,0.8069,2692.9,2692.5,3.71394]
[1730294798789,3.71348,2692.9,2692.4,4.10710843]
[1730294798994,4.165518,2692.9,2692.4,4.10710843]
[1730294799402,0.452038,2692.9,2692.5,3.71401]
[1730294799812,4.165528,2692.9,2692.4,7.82117843]
[1730294800181,4.165508,2692.9,2692.4,7.82119843]
[1730294801075,3.71382,2692.7,2692.4,4.10710843]
[1730294801276,3.71382,2692.7,2692.4,3.55620843]
[1730294801477,4.1301508,2692.8,2692.4,7.27035843]
[1730294802127,4.1301508,2692.8,2692.4,3.55620843]
[1730294802411,3.71382,2692.7,2692.4,3.55620843]
[1730294803111,4.1301708,2692.8,2692.4,3.55620843]